{"text_format":"1","workbook":"xlsx","n_sheets":3,"sheets":["Ignition Oven Scale Record","Revision History","Lists"],"not_rendered":{"charts":0,"images":1,"macros":1,"external_links":0,"defined_names":30,"comments":0,"pivot_tables":0},"unopened":[],"bounds":{"document_bytes":16777216,"sheet_cells":100000,"rows_first":2000,"rows_last":500,"rows_between":2000,"halvings":0,"cell_chars":16384,"cell_head_chars":4096},"cells_cut":0,"cells_raw":0,"read":"whole","date_system":"1900"}

{"sheet":"Ignition Oven Scale Record","index":0,"n_rows":70,"n_cols":12,"rows_kept":70,"cut":false,"hidden":false,"merged":[[27,1,27,2],[49,3,49,4],[49,5,49,6],[40,2,40,3],[41,2,41,3],[42,2,42,3],[43,2,43,3],[34,1,34,2],[34,3,34,4],[34,5,34,6],[37,2,37,3],[38,2,38,3],[32,1,32,2],[32,3,32,4],[32,5,32,6],[33,1,33,2],[50,3,50,4],[50,5,50,6],[51,3,51,4],[51,5,51,6],[46,5,46,6],[47,5,47,6],[48,5,48,6],[46,3,46,4],[48,3,48,4],[47,3,47,4],[30,3,30,4],[30,5,30,6],[31,1,31,2],[31,3,31,4],[31,5,31,6],[0,0,0,9],[1,0,1,9],[3,3,3,9],[5,3,5,9],[7,3,7,9],[17,3,17,9],[7,0,7,2],[5,0,5,2],[3,0,3,2],[2,0,2,9],[13,0,13,2],[11,0,11,2],[9,0,9,2],[17,0,17,2],[9,3,9,9],[15,3,15,9],[15,0,15,2],[13,3,13,9],[11,3,11,9],[23,3,23,9],[57,3,57,9],[23,0,23,2],[21,0,21,2],[19,0,19,2],[19,3,19,9],[21,3,21,9],[28,1,28,2],[28,3,28,4],[28,5,28,6],[29,1,29,2],[29,3,29,4],[29,5,29,6],[33,3,33,4],[33,5,33,6],[30,1,30,2],[61,0,61,2],[61,3,61,9],[59,3,59,9],[55,0,55,9],[59,0,59,2],[57,0,57,2],[69,3,69,9],[69,0,69,2],[67,0,67,2],[65,0,65,2],[63,0,63,2],[65,3,65,9],[67,3,67,9],[63,3,63,9]]}
["Texas Department of Transportation"]
["Ignition Oven Scale Standardization Record"]
[{"$f":"IF(OR(ISBLANK(Serial_Number),ISBLANK(Model_Number),ISBLANK(Description),ISBLANK(Manufacturer_Name),ISBLANK(Lab_Unit),ISBLANK(Calibration_Method),ISBLANK(Completed_Date),ISBLANK(Action_Recommended),ISBLANK(Overall_Status),ISBLANK(Remarks),ISBLANK(Authority),ISBLANK(Performed_By),ISBLANK(Reviewed_By),ISBLANK(Reviewed_Date),AND(ISBLANK(NonTxDOT_Other),Authority=\"Non-TxDOT/Other\"),AND(ISBLANK(District_Lab_Area_Office),Authority=\"District Lab/Area Office\"),AND(ISBLANK(MTD_Section),Authority=\"Materials and Tests Division\")),\"***ALL BLANK FIELDS MUST BE ADDRESSED.***\",\"\")","v":"***ALL BLANK FIELDS MUST BE ADDRESSED.***"},null,null,null,null,null,null,null,null,null,null,{"$f":"IF(A3=\"\",\"\",\"Instructions\")","v":"Instructions"}]
["Serial Number:",null,null,null,null,null,null,null,null,null,null,{"$f":"IF(ISBLANK(Serial_Number),\"Enter Serial Number exactly as it appears in APCM. SN must correspond to the physical piece of equipment.\",\"\")","v":"Enter Serial Number exactly as it appears in APCM. SN must correspond to the physical piece of equipment."}]
[]
["Model Number:",null,null,null,null,null,null,null,null,null,null,{"$f":"IF(ISBLANK(Model_Number),\"Enter Model Number exactly as it appears in APCM.\",\"\")","v":"Enter Model Number exactly as it appears in APCM."}]
[]
["Description:",null,null,null,null,null,null,null,null,null,null,{"$f":"IF(ISBLANK(Description),\"Enter Description exactly as it appears in APCM.\",\"\")","v":"Enter Description exactly as it appears in APCM."}]
[]
["Manufacturer Name:",null,null,null,null,null,null,null,null,null,null,{"$f":"IF(ISBLANK(Manufacturer_Name),\"Enter Manufacturer exactly as it appears in APCM. If no manufacturer exists, enter 'Not Available'.\",\"\")","v":"Enter Manufacturer exactly as it appears in APCM. If no manufacturer exists, enter 'Not Available'."}]
[]
["Lab Unit:",null,null,null,null,null,null,null,null,null,null,{"$f":"IF(ISBLANK(Lab_Unit),\"Enter the Lab Unit exactly as it appears in APCM.\",\"\")","v":"Enter the Lab Unit exactly as it appears in APCM."}]
[]
["Calibration Method:",null,null,"Tex-901-K",null,null,null,null,null,null,null,{"$f":"IF(ISBLANK(Calibration_Method),\"Select the calibration/verification/standardization procedure used.\",\"\")","v":""}]
[]
["Completed Date:",null,null,null,null,null,null,null,null,null,null,{"$f":"IF(ISBLANK(Completed_Date),\"Enter the actual date the calibration/verification/standardization was performed.\",\"\")","v":"Enter the actual date the calibration/verification/standardization was performed."}]
[]
["Calibration Interval (months):",null,null,12]
[]
["Next Due Date:",null,null,{"$f":"IF(Overall_Status=\"FAIL\",\"N/A\",IF(D16=\"\",\"\",(DATE(YEAR(D16),MONTH(D16)+D18,DAY(D16)))))","v":""},null,null,null,null,null,null,null,{"$f":"IF(Next_Due_Date=\"\",\"This field will automatically populate when 'Completed Date' has been entered.\",\"\")","v":"This field will automatically populate when 'Completed Date' has been entered."}]
[]
["Overall Status:",null,null,null,null,null,null,null,null,null,null,{"$f":"IF(ISBLANK(Overall_Status),\"Select the appropriate status from the drop-down list. If equipment fails, the equipment record must be made inactive in APCM.\",\"\")","v":"Select the appropriate status from the drop-down list. If equipment fails, the equipment record must be made inactive in APCM."}]
[]
["Action Recommended:",null,null,null,null,null,null,null,null,null,null,{"$f":"IF(ISBLANK(Action_Recommended),\"Ensure that 'Overall Status' has been selected, then select the appropriate action from the drop-down list.\",\"\")","v":"Ensure that 'Overall Status' has been selected, then select the appropriate action from the drop-down list."}]
[]
["Detailed Results:"]
[]
[null,"Standard Masses:"]
[null,"Model # or Weight Range",null,"Serial Number",null,"Equipment Expiration"]
[]
[]
[]
[]
[]
[]
[]
[null,"Balance Class:"]
[null,"Class","Accuracy (g) (+0.1% Sensitivity)",null,"Readability","Capacity","Units"]
[null,null,{"$f":"IF(class=\"\",\"\",IF(class=\"Ignition Oven G1\",\"0.02 or 0.1 %\",IF(class=\"Ignition Oven G2\",\"0.1 or 0.1 %\",)))","v":""},null,{"$f":"IF(class=\"\",\"\",IF(class=\"Ignition Oven G1\",0.01,IF(class=\"Ignition Oven G2\",0.1,)))","v":""}]
[]
[null,"Step","Check",null,"Complete"]
[null,"6.1.5","Clean"]
[null,"6.1.6","Level"]
[null,"6.1.7","Exercise"]
[]
[null,"Accuracy Measurement: ",null,"Record the selected mass in nominal column."]
[null,"Mass","Nominal  Weight","As Found Indication",null,"As Left",null,"Deviation","Accuracy","Pass/Fail"]
[null,0,null,null,null,null,null,{"$f":"IF(AND(F48=\"\",D48=\"\"),\"\",IF(F48=\"\",ABS(D48-C48),ABS(F48-C48)))","v":""},{"$f":"IF(C48=\"\",\"\",IF($G$39=\"lb.\",IF(class=\"A\",0.0002*0.00220462262185,IF(class=\"B\",0.002*0.00220462262185,IF(class=\"G100\",MAX(20*0.00220462262185,0.001*C48),IF(class=\"G5\",MAX(1*0.00220462262185,0.001*C48),IF(class=\"G20\",MAX(5*0.00220462262185,0.001*C48),IF(class=\"Ignition Oven G1\",MAX(0.02*0.00220462262185,0.001*C48),IF(class=\"Ignition Oven G2\",MAX(0.1*0.00220462262185,0.001*C48),IF(class=\"Field (ASTM C138)\",MAX(45*0.00220462262185,0.003*C48))))))))),IF(class=\"A\",0.0002,IF(class=\"B\",0.002,IF(class=\"G100\",MAX(20,0.001*C48),IF(class=\"G5\",MAX(1,0.001*C48),IF(class=\"G20\",MAX(5,0.001*C48),IF(class=\"Ignition Oven G1\",MAX(0.02,0.001*C48),IF(class=\"Ignition Oven G2\",MAX(0.1,0.001*C48),IF(class=\"Field (ASTM C138)\",MAX(45,0.003*C48)))))))))))","v":""},{"$f":"IF(H48=\"\",\"\",IF(H48<=I48,\"Pass\",\"Fail\"))","v":""}]
[null,{"$f":"CONCATENATE(\"Approx \", 0.25*capacity, \" \",$G$39)","v":"Approx 0 "},null,null,null,null,null,{"$f":"IF(AND(F49=\"\",D49=\"\"),\"\",IF(F49=\"\",ABS(D49-C49),ABS(F49-C49)))","v":""},{"$f":"IF(C49=\"\",\"\",IF($G$39=\"lb.\",IF(class=\"A\",0.0002*0.00220462262185,IF(class=\"B\",0.002*0.00220462262185,IF(class=\"G100\",MAX(20*0.00220462262185,0.001*C49),IF(class=\"G5\",MAX(1*0.00220462262185,0.001*C49),IF(class=\"G20\",MAX(5*0.00220462262185,0.001*C49),IF(class=\"Ignition Oven G1\",MAX(0.02*0.00220462262185,0.001*C49),IF(class=\"Ignition Oven G2\",MAX(0.1*0.00220462262185,0.001*C49),IF(class=\"Field (ASTM C138)\",MAX(45*0.00220462262185,0.003*C49))))))))),IF(class=\"A\",0.0002,IF(class=\"B\",0.002,IF(class=\"G100\",MAX(20,0.001*C49),IF(class=\"G5\",MAX(1,0.001*C49),IF(class=\"G20\",MAX(5,0.001*C49),IF(class=\"Ignition Oven G1\",MAX(0.02,0.001*C49),IF(class=\"Ignition Oven G2\",MAX(0.1,0.001*C49),IF(class=\"Field (ASTM C138)\",MAX(45,0.003*C49)))))))))))","v":""},{"$f":"IF(H49=\"\",\"\",IF(H49<=I49,\"Pass\",\"Fail\"))","v":""}]
[null,{"$f":"CONCATENATE(\"Approx \", 0.5*capacity, \" \",$G$39)","v":"Approx 0 "},null,null,null,null,null,{"$f":"IF(AND(F50=\"\",D50=\"\"),\"\",IF(F50=\"\",ABS(D50-C50),ABS(F50-C50)))","v":""},{"$f":"IF(C50=\"\",\"\",IF($G$39=\"lb.\",IF(class=\"A\",0.0002*0.00220462262185,IF(class=\"B\",0.002*0.00220462262185,IF(class=\"G100\",MAX(20*0.00220462262185,0.001*C50),IF(class=\"G5\",MAX(1*0.00220462262185,0.001*C50),IF(class=\"G20\",MAX(5*0.00220462262185,0.001*C50),IF(class=\"Ignition Oven G1\",MAX(0.02*0.00220462262185,0.001*C50),IF(class=\"Ignition Oven G2\",MAX(0.1*0.00220462262185,0.001*C50),IF(class=\"Field (ASTM C138)\",MAX(45*0.00220462262185,0.003*C50))))))))),IF(class=\"A\",0.0002,IF(class=\"B\",0.002,IF(class=\"G100\",MAX(20,0.001*C50),IF(class=\"G5\",MAX(1,0.001*C50),IF(class=\"G20\",MAX(5,0.001*C50),IF(class=\"Ignition Oven G1\",MAX(0.02,0.001*C50),IF(class=\"Ignition Oven G2\",MAX(0.1,0.001*C50),IF(class=\"Field (ASTM C138)\",MAX(45,0.003*C50)))))))))))","v":""},{"$f":"IF(H50=\"\",\"\",IF(H50<=I50,\"Pass\",\"Fail\"))","v":""}]
[null,{"$f":"CONCATENATE(\"Approx \", 0.75*capacity, \" \",$G$39)","v":"Approx 0 "},null,null,null,null,null,{"$f":"IF(AND(F51=\"\",D51=\"\"),\"\",IF(F51=\"\",ABS(D51-C51),ABS(F51-C51)))","v":""},{"$f":"IF(C51=\"\",\"\",IF($G$39=\"lb.\",IF(class=\"A\",0.0002*0.00220462262185,IF(class=\"B\",0.002*0.00220462262185,IF(class=\"G100\",MAX(20*0.00220462262185,0.001*C51),IF(class=\"G5\",MAX(1*0.00220462262185,0.001*C51),IF(class=\"G20\",MAX(5*0.00220462262185,0.001*C51),IF(class=\"Ignition Oven G1\",MAX(0.02*0.00220462262185,0.001*C51),IF(class=\"Ignition Oven G2\",MAX(0.1*0.00220462262185,0.001*C51),IF(class=\"Field (ASTM C138)\",MAX(45*0.00220462262185,0.003*C51))))))))),IF(class=\"A\",0.0002,IF(class=\"B\",0.002,IF(class=\"G100\",MAX(20,0.001*C51),IF(class=\"G5\",MAX(1,0.001*C51),IF(class=\"G20\",MAX(5,0.001*C51),IF(class=\"Ignition Oven G1\",MAX(0.02,0.001*C51),IF(class=\"Ignition Oven G2\",MAX(0.1,0.001*C51),IF(class=\"Field (ASTM C138)\",MAX(45,0.003*C51)))))))))))","v":""},{"$f":"IF(H51=\"\",\"\",IF(H51<=I51,\"Pass\",\"Fail\"))","v":""}]
[null,{"$f":"CONCATENATE(\"Approx \", capacity, \" \",$G$39)","v":"Approx  "},null,null,null,null,null,{"$f":"IF(AND(F52=\"\",D52=\"\"),\"\",IF(F52=\"\",ABS(D52-C52),ABS(F52-C52)))","v":""},{"$f":"IF(C52=\"\",\"\",IF($G$39=\"lb.\",IF(class=\"A\",0.0002*0.00220462262185,IF(class=\"B\",0.002*0.00220462262185,IF(class=\"G100\",MAX(20*0.00220462262185,0.001*C52),IF(class=\"G5\",MAX(1*0.00220462262185,0.001*C52),IF(class=\"G20\",MAX(5*0.00220462262185,0.001*C52),IF(class=\"Ignition Oven G1\",MAX(0.02*0.00220462262185,0.001*C52),IF(class=\"Ignition Oven G2\",MAX(0.1*0.00220462262185,0.001*C52),IF(class=\"Field (ASTM C138)\",MAX(45*0.00220462262185,0.003*C52))))))))),IF(class=\"A\",0.0002,IF(class=\"B\",0.002,IF(class=\"G100\",MAX(20,0.001*C52),IF(class=\"G5\",MAX(1,0.001*C52),IF(class=\"G20\",MAX(5,0.001*C52),IF(class=\"Ignition Oven G1\",MAX(0.02,0.001*C52),IF(class=\"Ignition Oven G2\",MAX(0.1,0.001*C52),IF(class=\"Field (ASTM C138)\",MAX(45,0.003*C52)))))))))))","v":""},{"$f":"IF(H52=\"\",\"\",IF(H52<=I52,\"Pass\",\"Fail\"))","v":""}]
[]
[]
["Remarks:"]
[null,null,null,null,null,null,null,null,null,null,null,{"$f":"IF(ISBLANK(Remarks),\"Enter any comments regarding the equipment calibration/verification/standardization. \nComments must be entered for Action Recommended of 'Other' and/or Overall Status of 'Fail'. \nIf no comments are needed, enter 'None'.\",\"\")","v":"Enter any comments regarding the equipment calibration/verification/standardization. \nComments must be entered for Action Recommended of 'Other' and/or Overall Status of 'Fail'. \nIf no comments are needed, enter 'None'."}]
[]
["Authority:",null,null,null,null,null,null,null,null,null,null,{"$f":"IF(ISBLANK(Authority),\"Select the appropriate calibrating authority from the drop-down list.\",\"\")","v":"Select the appropriate calibrating authority from the drop-down list."}]
[]
["MTD Section:",null,null,null,null,null,null,null,null,null,null,{"$f":"IF(ISBLANK(MTD_Section),\"Enter the MTD Section that performed the calibration/verification/standardization.\",\"\")","v":"Enter the MTD Section that performed the calibration/verification/standardization."}]
[]
["District Lab/Area Office:",null,null,null,null,null,null,null,null,null,null,{"$f":"IF(ISBLANK(District_Lab_Area_Office),\"Enter the name of the district lab or area office that performed the calibration/verification/standardization.\",\"\")","v":"Enter the name of the district lab or area office that performed the calibration/verification/standardization."}]
[]
["Non-TxDOT/Other Firm:",null,null,null,null,null,null,null,null,null,null,{"$f":"IF(ISBLANK(D64),\"Enter the name of the third-party entity that performed the calibration/verification/standardization.\",\"\")","v":"Enter the name of the third-party entity that performed the calibration/verification/standardization."}]
[]
["Performed By:",null,null,null,null,null,null,null,null,null,null,{"$f":"IF(ISBLANK(Performed_By),\"Enter the name of the individual who performed the calibration/verification/standardization.\",\"\")","v":"Enter the name of the individual who performed the calibration/verification/standardization."}]
[]
["Reviewed By:",null,null,null,null,null,null,null,null,null,null,{"$f":"IF(ISBLANK(Reviewed_By),\"Enter the name of the individual who reviewed the record for completeness and accuracy.\",\"\")","v":"Enter the name of the individual who reviewed the record for completeness and accuracy."}]
[]
["Reviewed Date:",null,null,null,null,null,null,null,null,null,null,{"$f":"IF(ISBLANK(Reviewed_Date),\"Enter the actual date the record was reviewed.\",IF(Reviewed_Date<Completed_Date,\"Reviewed Date must be after Completed Date.\",\"\"))","v":"Enter the actual date the record was reviewed."}]

{"sheet":"Revision History","index":1,"n_rows":3,"n_cols":3,"rows_kept":3,"cut":false,"hidden":false,"merged":[]}
["Revision Date","Revision Description","Revised By"]
["2023-02-05","Updated to new template format.","A. Melton"]
["2023-08-21","Formating changes were made","SJV"]

{"sheet":"Lists","index":2,"n_rows":64,"n_cols":14,"rows_kept":64,"cut":false,"hidden":true,"merged":[]}
["Status","Pass","Fail","Authority","MTD Sections","Calibration_Method",null,"Date Range",null,"Class",null,"Units",null,"Complete"]
["Pass","None","Repair","Materials and Tests Division","Rigid Pavements","Tex-198-E",null,"2000-01-01",null,"Ignition Oven G1",null,"g"]
["Fail","Other (See Remarks)","Replace","District Lab/Area Office","Flexible Pavements","Tex-237-F",null,"2100-01-01",null,"Ignition Oven G2",null,"lb."]
[null,null,"Other (See Remarks)","Non-TxDOT/Other","Soils & Aggregates","Tex-498-A"]
[null,null,null,null,"Coatings, Calibration, & Traffic Materials","Tex-900-K"]
[null,null,null,null,null,"Tex-901-K"]
[null,null,null,null,null,"Tex-902-K"]
[null,null,null,null,null,"Tex-903-K"]
[null,null,null,null,null,"Tex-905-K"]
[null,null,null,null,null,"Tex-907-K"]
[null,null,null,null,null,"Tex-909-K"]
[null,null,null,null,null,"Tex-911-K"]
[null,null,null,null,null,"Tex-913-K"]
[null,null,null,null,null,"Tex-914-K"]
[null,null,null,null,null,"Tex-916-K"]
[null,null,null,null,null,"Tex-920-K"]
[null,null,null,null,null,"Tex-921-K"]
[null,null,null,null,null,"Tex-922-K"]
[null,null,null,null,null,"Tex-923-K"]
[null,null,null,null,null,"Tex-924-K"]
[null,null,null,null,null,"Tex-925-K"]
[null,null,null,null,null,"Tex-926-K"]
[null,null,null,null,null,"Tex-927-K"]
[null,null,null,null,null,"Tex-930-K"]
[null,null,null,null,null,"AASHTO R28"]
[null,null,null,null,null,"AASHTO T202"]
[null,null,null,null,null,"AASHTO T228"]
[null,null,null,null,null,"AASHTO T240"]
[null,null,null,null,null,"AASHTO T313"]
[null,null,null,null,null,"AASHTO T315"]
[null,null,null,null,null,"AASHTO T316"]
[null,null,null,null,null,"AASHTO T48"]
[null,null,null,null,null,"AASHTO T49"]
[null,null,null,null,null,"AASHTO T50"]
[null,null,null,null,null,"AASHTO T51"]
[null,null,null,null,null,"AASHTO T53"]
[null,null,null,null,null,"AASHTO T59"]
[null,null,null,null,null,"ASME B40"]
[null,null,null,null,null,"ASME B89"]
[null,null,null,null,null,"ASTM C109"]
[null,null,null,null,null,"ASTM C1231"]
[null,null,null,null,null,"ASTM C143"]
[null,null,null,null,null,"ASTM C151"]
[null,null,null,null,null,"ASTM C1702"]
[null,null,null,null,null,"ASTM C173"]
[null,null,null,null,null,"ASTM C174"]
[null,null,null,null,null,"ASTM C192"]
[null,null,null,null,null,"ASTM C204"]
[null,null,null,null,null,"ASTM C231"]
[null,null,null,null,null,"ASTM C430"]
[null,null,null,null,null,"ASTM C511"]
[null,null,null,null,null,"ASTM C604"]
[null,null,null,null,null,"ASTM C617"]
[null,null,null,null,null,"ASTM C78"]
[null,null,null,null,null,"ASTM D4237"]
[null,null,null,null,null,"ASTM C6084"]
[null,null,null,null,null,"ASTM E10"]
[null,null,null,null,null,"ASTM E18"]
[null,null,null,null,null,"ASTM E2309"]
[null,null,null,null,null,"ASTM E4"]
[null,null,null,null,null,"ASTM E83"]
[null,null,null,null,null,"EXT - External Calibration"]
[null,null,null,null,null,"NA - Not Applicable"]
[null,null,null,null,null,"SS - Supplier's Standard"]